bitfinex-derivatives/quotes_SOLF0:USTF0_20250215
["timestamp","ask_amount","ask_price","bid_price","bid_amount"]
[1739630605144,0.03374915,193.75,193.72,0.03321335]
[1739630606049,0.03374915,193.75,193.74,5.1607]
[1739630607047,0.03374915,193.75,193.72,0.03321335]
[1739630608353,0.03374915,193.75,193.74,5.1607]
[1739630608947,0.03374915,193.75,193.72,0.03321335]
[1739630609152,0.03374915,193.75,193.73,5.161]
[1739630609549,0.03374915,193.75,193.72,0.03321335]
[1739630609853,0.03374915,193.75,193.74,5.1607]
[1739630614755,0.03374915,193.75,193.72,0.03321335]
[1739630615557,0.03374915,193.75,193.74,5.1607]
[1739630617353,1.5402,193.85,193.73,26.10184039]
[1739630617549,5.1578,193.85,193.81,5.1588]
[1739630617755,14.37402602,193.89,193.77,14.37402602]
[1739630617957,14.37402602,193.89,193.8,5.1591]
[1739630618448,5.1586,193.83,193.78,5.1594]
[1739630618649,0.03268944,193.86,193.77,14.37402602]
[1739630618850,14.37402602,193.89,193.79,0.0338311]
[1739630619060,0.03944326,193.83,193.79,0.0338311]
[1739630622857,14.41346928,193.83,193.79,0.0338311]
[1739630623362,14.37402602,193.8,193.7,5.1616]
[1739630623763,5.1608,193.74,193.68,5.1621]
[1739630624160,14.37402602,193.77,193.67,1.656]
[1739630624365,14.37402602,193.77,193.65,14.37402602]
[1739630624560,0.03258206,193.74,193.7,0.03741366]
[1739630624867,5.1611,193.73,193.7,0.03741366]
[1739630625263,0.03258206,193.74,193.7,0.03741366]
[1739630628270,5.19328206,193.74,193.7,0.03741366]
[1739630628464,0.03258206,193.74,193.7,0.03741366]
[1739630630969,5.1613,193.72,193.7,0.03741366]
[1739630631173,0.03258206,193.74,193.7,0.03741366]
[1739630631571,5.1615,193.71,193.7,0.03741366]
[1739630631763,0.03258206,193.74,193.7,0.03741366]
[1739630632272,5.1615,193.71,193.7,0.03741366]
[1739630633672,0.03258206,193.74,193.7,23.06437203]
[1739630633877,0.03258206,193.74,193.73,5.161]
[1739630634175,1.6697,193.82,193.73,23.02695837]
[1739630634376,139.17035822,193.84,193.78,5.1594]
[1739630634766,139.17035822,193.84,193.73,23.02695837]
[1739630635176,0.03292935,193.8,193.77,0.03795454]
[1739630636373,0.03292935,193.8,193.79,5.1594]
[1739630639768,0.03292935,193.8,193.77,5.19765454]
[1739630640675,0.03292935,193.8,193.78,5.1595]
[1739630641278,0.03292935,193.8,193.77,0.03795454]
[1739630641576,0.03292935,193.8,193.77,5.19785454]
[1739630642378,0.03292935,193.8,193.78,5.1596]
[1739630643077,0.03292935,193.8,193.77,5.19785454]
[1739630643478,0.03292935,193.8,193.77,0.03795454]
[1739630643773,0.03292935,193.8,193.72,5.1612]
[1739630643977,1.5402,193.8,193.72,5.1612]
[1739630644181,5.1596,193.79,193.67,23.02695837]
[1739630644377,1.5402,193.8,193.74,5.1607]
[1739630644677,1.5402,193.8,193.67,23.02695837]
[1739630644879,0.03435963,193.79,193.75,0.03746942]
[1739630645377,5.1599,193.78,193.75,0.03746942]
[1739630646379,5.16,193.77,193.75,0.03746942]
[1739630647779,5.1597,193.78,193.75,0.03746942]
[1739630649373,14.38787318,193.77,193.65,14.38787318]
[1739630649881,5.1608,193.74,193.68,5.1623]
[1739630650079,14.38787318,193.77,193.68,5.1623]
[1739630650381,5.1608,193.74,193.65,14.38787318]
[1739630650682,0.0392783,193.74,193.71,0.03830606]
[1739630650981,0.0392783,193.74,193.72,5.1612]
[1739630651882,0.0392783,193.74,193.71,0.03403531]
[1739630652379,5.1613,193.72,193.71,0.03403531]
[1739630654581,6.8245,193.73,193.71,0.03403531]
[1739630656275,5.1613,193.72,193.71,0.03403531]
[1739630656785,1.6635,193.73,193.71,0.03403531]
[1739630658088,5.1613,193.72,193.71,0.03403531]
[1739630659389,1.5445,193.72,193.62,14.38787318]
[1739630659988,6.706,193.72,193.66,5.1627]
[1739630660392,0.03858795,193.71,193.67,0.03673362]
[1739630660783,5.20018795,193.71,193.67,0.03673362]
[1739630661591,0.03858795,193.71,193.67,0.03673362]
[1739630661896,14.42646113,193.71,193.67,0.03673362]
[1739630662592,0.03858795,193.71,193.67,0.03673362]
[1739630664194,5.1618,193.7,193.67,0.03673362]
[1739630665695,0.03858795,193.71,193.67,0.03673362]
[1739630666399,5.1619,193.7,193.67,0.03673362]
[1739630668193,5.1623,193.68,193.67,0.03673362]
[1739630669304,14.42646113,193.71,193.67,0.03673362]
[1739630669502,5.162,193.7,193.67,0.03673362]
[1739630671409,0.03858795,193.71,193.67,0.03673362]
[1739630672502,0.03858795,193.71,193.67,5.19913362]
[1739630676508,0.03858795,193.71,193.67,0.03673362]
[1739630677101,0.03858795,193.71,193.67,5.19933362]
[1739630679511,0.03858795,193.71,193.67,0.03673362]
[1739630680010,5.162,193.7,193.67,0.03673362]
[1739630680509,14.42646113,193.71,193.67,0.03673362]
[1739630681807,14.38069439,193.68,193.67,0.03673362]
[1739630683615,5.1623,193.68,193.67,0.03673362]
[1739630684016,5.1621,193.69,193.67,0.03673362]
[1739630684219,14.40265776,193.7,193.67,0.03673362]
[1739630684825,19.56465776,193.7,193.67,0.03673362]
[1739630685522,5.20018795,193.71,193.67,0.03673362]
[1739630685716,0.03858795,193.71,193.67,0.03673362]
[1739630686317,0.03858795,193.71,193.67,5.19903362]
[1739630689319,0.03858795,193.71,193.67,0.03673362]
[1739630689918,5.1621,193.69,193.67,0.03673362]
[1739630690719,5.1623,193.68,193.67,0.03673362]
[1739630691119,14.40265776,193.67,193.56,4.8452]
[1739630691416,5.1629,193.66,193.59,5.1647]
[1739630691623,14.40265776,193.62,193.53,21.41103961]
[1739630692116,14.40265776,193.62,193.56,0.03320422]
[1739630692117,0.03277591,193.59,193.56,0.03320422]
[1739630695722,0.03277591,193.59,193.58,5.165]
[1739630696615,0.03277591,193.59,193.57,5.1652]
[1739630697724,0.03277591,193.59,193.56,0.03320422]
[1739630697925,0.03277591,193.59,193.58,5.165]
[1739630699225,0.03277591,193.59,193.57,5.1652]
[1739630700426,0.03277591,193.59,193.58,5.165]
[1739630703025,191.0,193.68,193.63,5.1634]
[1739630703227,14.40265776,193.71,193.6,14.40265776]
[1739630703728,5.1623,193.68,193.64,5.1633]
[1739630703925,14.40265776,193.71,193.64,5.1633]
[1739630704125,0.03254039,193.68,193.64,5.19937622]
[1739630705424,0.03254039,193.68,193.64,0.03607622]
[1739630707432,0.03254039,193.68,193.66,5.1626]
[1739630708032,0.03254039,193.68,193.65,5.1631]
[1739630708230,0.03254039,193.68,193.64,0.03607622]
[1739630708835,0.03254039,193.68,193.67,5.1626]
[1739630712034,14.40265776,193.8,193.66,16.03365776]
[1739630712231,195.8189,193.81,193.7,14.40265776]
[1739630712736,5.1594,193.79,193.74,5.1605]
[1739630712937,195.8189,193.81,193.7,14.40265776]
[1739630713129,0.0339507,193.78,193.75,0.03743104]
[1739630713333,0.0339507,193.78,193.75,5.19783104]
[1739630713531,0.0339507,193.78,193.75,0.03743104]
[1739630715141,0.0339507,193.78,193.75,5.19783104]
[1739630715940,0.0339507,193.78,193.75,0.03743104]
[1739630716737,0.0339507,193.78,193.75,5.19783104]
[1739630716941,0.0339507,193.78,193.75,0.03743104]
[1739630718339,0.0339507,193.78,193.75,5.19773104]
[1739630719131,0.0339507,193.78,193.75,0.03743104]
[1739630719338,0.0339507,193.78,193.77,5.1599]
[1739630719940,0.0339507,193.78,193.75,0.03743104]
[1739630720639,0.0339507,193.78,193.75,5.19783104]
[1739630722042,0.0339507,193.78,193.75,0.03743104]
[1739630723130,0.0339507,193.78,193.76,14.40265776]
[1739630723340,0.0339507,193.78,193.77,5.1599]
[1739630726342,0.0339507,193.78,193.76,19.56285776]
[1739630727239,0.0339507,193.78,193.77,5.1599]
[1739630727744,14.40265776,193.89,193.76,14.40265776]
[1739630727942,14.40265776,193.89,193.76,17.61475776]
[1739630727943,1.6017,193.87,193.76,17.61475776]
[1739630728138,1.6017,193.87,193.79,14.40265776]
[1739630729142,0.03768663,193.85,193.82,5.1586]
[1739630729840,0.03768663,193.85,193.83,5.1582]
[1739630730232,0.03768663,193.85,193.84,5.1581]
[1739630735448,0.03768663,193.85,193.82,19.56105776]
[1739630735947,0.03768663,193.85,193.82,14.40265776]
[1739630736747,0.03768663,193.85,193.82,19.56105776]
[1739630736944,0.03768663,193.85,193.82,14.40265776]
[1739630737450,0.03768663,193.85,193.84,5.1581]
[1739630737642,0.03768663,193.85,193.84,14.35261704]
[1739630739247,14.35011704,193.94,193.84,9.19451704]
[1739630739551,14.35011704,193.94,193.88,9.19451704]
[1739630739948,14.35011704,193.94,193.89,5.1567]
[1739630740351,0.03508352,193.93,193.9,0.03872459]
[1739630740947,0.03508352,193.93,193.9,5.19522459]
[1739630741251,0.03508352,193.93,193.9,0.03872459]
[1739630742050,0.03508352,193.93,193.9,9.23324163]
[1739630742442,0.03508352,193.93,193.92,5.1559]
[1739630742652,0.03508352,193.93,193.9,9.23324163]
[1739630742954,0.03508352,193.93,193.91,5.1561]
[1739630743149,0.03508352,193.93,193.9,9.23324163]
[1739630743947,0.03508352,193.93,193.9,14.38964163]
[1739630744254,0.03508352,193.93,193.9,9.23324163]
[1739630745858,0.03508352,193.93,193.91,5.1562]
[1739630746263,0.03508352,193.93,193.9,9.23324163]
[1739630746461,0.03508352,193.93,193.92,9.19451704]
[1739630747060,0.03508352,193.93,193.92,14.35041704]
[1739630755866,12.48331704,194.02,193.92,9.19451704]
[1739630756169,12.48331704,194.02,193.81,115.72]
[1739630756170,9.19451704,194.0,193.94,9.19451704]
[1739630756669,12.48331704,194.02,193.96,9.19451704]
[1739630757171,0.032973,194.01,193.97,0.03865722]
[1739630758464,5.186573,194.01,193.97,0.03865722]
[1739630758862,0.032973,194.01,194.0,9.19451704]
[1739630759064,0.032973,194.01,193.98,9.19451704]
[1739630759662,0.032973,194.01,193.97,0.03865722]
[1739630760370,0.032973,194.01,194.0,9.19451704]
[1739630760567,0.032973,194.01,194.0,14.34831704]
[1739630760772,0.032973,194.01,193.98,9.19451704]
[1739630760972,9.19451704,194.0,193.97,0.03865722]
[1739630761974,14.34831704,194.0,193.97,0.03865722]
[1739630762872,9.19451704,194.0,193.97,0.03865722]
[1739630763072,0.032973,194.01,193.97,0.03865722]
[1739630763273,0.032973,194.01,193.98,9.19451704]
[1739630763475,0.032973,194.01,194.0,5.1538]
[1739630764377,0.032973,194.01,193.99,5.154]
[1739630764575,9.19451704,194.0,193.97,0.03865722]
[1739630765879,14.34861704,194.0,193.97,0.03865722]
[1739630766280,9.19451704,193.98,193.97,0.03865722]
[1739630766573,9.19451704,193.98,193.88,9.19451704]
[1739630766779,9.19451704,193.91,193.86,9.19451704]
[1739630767074,9.19451704,193.91,193.86,5.1575]
[1739630767377,9.19451704,193.91,193.84,12.36461704]
[1739630767577,0.03296161,193.9,193.88,9.19451704]
[1739630767773,9.19451704,193.93,193.88,9.19451704]
[1739630767973,0.03860417,193.91,193.87,5.19413458]
[1739630768173,9.23312121,193.91,193.87,5.19413458]
[1739630768775,9.23312121,193.91,193.87,0.03713458]
[1739630770382,14.38932121,193.91,193.87,0.03713458]
[1739630771477,9.23312121,193.91,193.87,5.19433458]
[1739630771673,0.03860417,193.91,193.9,9.19451704]
[1739630773582,0.03860417,193.91,193.9,14.35101704]
[1739630776080,9.19451704,194.03,193.9,9.19451704]
[1739630776285,9.19451704,194.03,193.96,9.19451704]
[1739630777178,0.03406408,194.01,193.98,0.03947122]
[1739630777383,0.03406408,194.01,193.98,9.23398826]
[1739630777886,0.03406408,194.01,194.0,9.19451704]
[1739630778390,0.03406408,194.01,194.0,14.34831704]
[1739630779485,0.03406408,194.01,194.0,9.19451704]
[1739630780187,0.03406408,194.01,194.0,14.34831704]
[1739630781285,9.19451704,194.09,194.0,9.19451704]
[1739630781484,9.19451704,194.11,194.04,9.19451704]
[1739630781691,5.1512,194.1,194.04,9.19451704]
[1739630781886,5.1512,194.1,194.04,14.34721704]
[1739630782189,9.19451704,194.11,194.04,9.19451704]
[1739630782489,5.18435467,194.09,194.06,0.03276016]
[1739630782787,0.03295467,194.09,194.06,0.03276016]
[1739630783591,0.03295467,194.09,194.06,9.2272772]
[1739630785588,0.03295467,194.09,194.08,9.19451704]
[1739630789991,0.03295467,194.09,194.06,9.2272772]
[1739630790300,5.152,194.07,194.06,0.03276016]
[1739630792096,9.22747171,194.09,194.06,0.03276016]
[1739630792698,0.03295467,194.09,194.06,0.03276016]
[1739630795902,9.22747171,194.09,194.06,0.03276016]
[1739630796102,14.37897171,194.09,194.06,0.03276016]
[1739630796300,0.03295467,194.09,194.06,0.03276016]
[1739630799595,0.03295467,194.09,194.07,5.1518]
[1739630800407,0.03295467,194.09,194.08,5.1517]
[1739630800607,0.03295467,194.09,194.08,14.34621704]
[1739630806709,10.0205,194.16,194.12,5.1506]
[1739630806912,10.0205,194.16,194.13,9.19451704]
[1739630807210,6.7705,194.16,194.13,9.19451704]
[1739630807405,1.6209,194.16,194.11,9.19451704]
[1739630807600,9.19451704,194.19,193.97,117.315]
[1739630807812,10.79381704,194.21,194.15,9.19451704]
[1739630808112,5.18281155,194.2,194.15,9.19451704]
[1739630808306,5.18281155,194.2,194.16,0.0364642]
[1739630809405,0.03421155,194.2,194.17,9.19451704]
[1739630810010,0.03421155,194.2,194.19,9.19451704]
[1739630811709,0.03421155,194.2,194.17,9.19451704]
[1739630811916,0.03421155,194.2,194.19,9.19451704]
[1739630812210,0.03421155,194.2,194.19,14.34331704]
[1739630812610,3.2077,194.28,194.19,9.19451704]
[1739630812805,3.2077,194.28,194.24,9.19451704]
[1739630813010,5.1468,194.27,194.24,9.19451704]
[1739630813312,9.19451704,194.29,194.24,9.19451704]
[1739630813809,0.03824397,194.28,194.25,0.03970411]
[1739630816013,5.18484397,194.28,194.25,0.03970411]
[1739630816615,5.1469,194.26,194.25,0.03970411]
[1739630817406,9.19451704,194.27,194.18,9.19451704]
[1739630817711,9.19451704,194.24,194.18,9.19451704]
[1739630817910,5.1483,194.21,194.18,9.19451704]
[1739630818616,5.18234328,194.21,194.18,9.23113298]
[1739630818915,0.03404328,194.21,194.18,9.23113298]
[1739630819417,5.1487,194.2,194.18,9.23113298]
[1739630819613,5.1487,194.2,194.18,0.03661594]
[1739630820117,0.03404328,194.21,194.18,0.03661594]
[1739630820416,5.18234328,194.21,194.18,0.03661594]
[1739630820612,0.03404328,194.21,194.18,9.23113298]
[1739630820917,5.18234328,194.21,194.18,9.23113298]
[1739630821121,0.03404328,194.21,194.18,0.03661594]
[1739630821417,0.03404328,194.21,194.18,9.23113298]
[1739630822214,0.03404328,194.21,194.2,9.19451704]
[1739630823518,1.5451,194.29,194.2,9.19451704]
[1739630823716,9.19451704,194.32,194.25,14.34171704]
[1739630824122,9.19451704,194.32,194.27,9.19451704]
[1739630824318,14.33991704,194.32,194.27,9.19451704]
[1739630824525,0.03611741,194.31,194.28,0.03775535]
[1739630824921,5.18171741,194.31,194.28,0.03775535]
[1739630825122,0.03611741,194.31,194.28,0.03775535]
[1739630825521,0.03611741,194.31,194.29,9.19451704]
[1739630825721,0.03611741,194.31,194.28,0.03775535]
[1739630827319,0.03611741,194.31,194.28,5.18415535]
[1739630828116,0.03611741,194.31,194.28,0.03775535]
[1739630828719,5.1461,194.29,194.28,0.03775535]
[1739630830821,0.03611741,194.31,194.28,0.03775535]
[1739630832823,0.03611741,194.31,194.28,5.18395535]
[1739630833014,0.03611741,194.31,194.28,0.03775535]
[1739630835025,5.1459,194.3,194.28,0.03775535]
[1739630835324,0.03611741,194.31,194.28,0.03775535]
[1739630836926,5.18171741,194.31,194.28,0.03775535]
[1739630837429,0.03611741,194.31,194.28,0.03775535]
[1739630839026,5.1461,194.29,194.28,0.03775535]
[1739630839724,15.97588843,194.3,194.2,19.45128843]
[1739630839923,15.97588843,194.3,194.2,14.30278843]
[1739630840528,1.6731,194.3,194.2,14.30278843]
[1739630840725,0.03732118,194.27,194.23,0.03778713]
[1739630842229,0.03732118,194.27,194.23,14.34057556]
[1739630842424,0.03732118,194.27,194.26,14.30278843]
[1739630842625,0.03732118,194.27,194.26,19.44968843]
[1739630843823,194.1457,194.37,194.26,14.30278843]
[1739630844026,3.1457,194.37,194.3,14.30278843]
[1739630844729,8.2899,194.37,194.32,5.1453]
[1739630844933,0.03428288,194.35,194.32,5.17850501]
[1739630845124,0.03428288,194.35,194.32,0.03320501]
[1739630845430,0.03428288,194.35,194.33,5.1449]
[1739630845724,0.03428288,194.35,194.32,0.03320501]
[1739630846427,5.17878288,194.35,194.32,0.03320501]
[1739630846930,0.03428288,194.35,194.32,0.03320501]
[1739630847428,14.33707131,194.35,194.24,14.30278843]
[1739630847825,14.33707131,194.35,194.22,1.5359]
[1739630848123,14.30278843,194.35,194.22,1.5359]
[1739630848630,0.03733289,194.3,194.27,0.03936623]
[1739630850129,5.18333289,194.3,194.27,0.03936623]
[1739630851524,5.1461,194.29,194.27,0.03936623]
[1739630852029,5.1464,194.29,194.27,0.03936623]
[1739630852226,0.03733289,194.3,194.27,0.03936623]
[1739630852730,0.03733289,194.3,194.18,14.30278843]
[1739630852933,14.30278843,194.29,194.18,14.30278843]
[1739630853131,14.30278843,194.29,194.21,5.1482]
[1739630853529,5.1467,194.27,194.21,5.1482]
[1739630853924,0.03793897,194.26,194.21,5.1482]
[1739630854236,0.03793897,194.26,194.22,0.03952839]
[1739630855533,0.03793897,194.26,194.23,5.1477]
[1739630856537,0.03793897,194.26,194.22,0.03952839]
[1739630856834,0.03793897,194.26,194.24,5.1472]
[1739630857430,0.03793897,194.26,194.25,5.1472]
[1739630858328,0.03793897,194.26,194.22,0.03952839]
[1739630858533,0.03793897,194.26,194.24,5.1474]
[1739630859036,0.03793897,194.26,194.22,0.03952839]
[1739630859636,0.03793897,194.26,194.24,14.30278843]
[1739630860237,0.03793897,194.26,194.25,5.1472]
[1739630863439,5.1451,194.33,194.29,5.146]
[1739630863839,191.0,194.36,194.27,14.30278843]
[1739630864443,0.03477683,194.33,194.3,0.03638518]
[1739630865343,0.03477683,194.33,194.3,5.18218518]
[1739630865944,0.03477683,194.33,194.3,0.03638518]
[1739630869854,0.03477683,194.33,194.3,14.33917361]
[1739630870750,0.03477683,194.33,194.32,5.1453]
[1739630872958,5.1427,194.42,194.3,14.33917361]
[1739630873246,143.78805822,194.43,194.36,5.1442]
[1739630873452,3.0476,194.43,194.36,5.1442]
[1739630874258,0.03802297,194.41,194.38,0.0367709]
[1739630875757,5.18092297,194.41,194.38,0.0367709]
[1739630878858,5.1433,194.4,194.38,0.0367709]
[1739630880751,5.1435,194.39,194.38,0.0367709]
[1739630884968,9.14739262,194.4,194.3,9.14739262]
[1739630885261,9.14739262,194.35,194.3,9.14739262]
[1739630885662,14.29209262,194.35,194.3,14.29319262]
[1739630885967,9.14739262,194.35,194.3,9.14739262]
[1739630886167,5.17892624,194.34,194.31,0.03878899]
[1739630886368,0.03412624,194.34,194.31,0.03878899]
[1739630886570,9.14739262,194.33,194.31,0.03878899]
[1739630887565,5.1453,194.32,194.31,0.03878899]
[1739630890164,5.17912624,194.34,194.31,0.03878899]
[1739630890969,0.03412624,194.34,194.31,0.03878899]
[1739630891173,0.03412624,194.34,194.32,14.29249262]
[1739630891673,0.03412624,194.34,194.32,9.14739262]
[1739630892073,0.03412624,194.34,194.32,14.29269262]
[1739630892478,0.03412624,194.34,194.32,9.14739262]
[1739630892976,0.03412624,194.34,194.31,0.03878899]
[1739630895073,0.03412624,194.34,194.32,5.1453]
[1739630895379,0.03412624,194.34,194.32,9.14739262]
[1739630895582,0.03412624,194.34,194.33,5.1451]
[1739630898079,5.1427,194.42,194.32,14.29301073]
[1739630898281,5.1427,194.42,194.37,5.1438]
[1739630898771,5.1427,194.42,194.32,15.89001073]
[1739630899079,3.0476,194.43,194.39,5.1433]
[1739630899282,0.03592779,194.39,194.35,14.33119687]
[1739630899583,6.7647,194.46,194.4,5.143]
[1739630899980,0.03439487,194.45,194.41,0.03487081]
[1739630900180,0.03439487,194.45,194.42,5.1426]
[1739630900678,0.03439487,194.45,194.41,0.03487081]
[1739630902779,14.29301073,194.43,194.41,0.03487081]
[1739630902974,5.1427,194.42,194.41,0.03487081]
[1739630903179,14.29301073,194.43,194.34,5.1448]
[1739630903380,5.1433,194.4,194.33,5.145]
[1739630903580,14.29301073,194.43,194.32,15.89001073]
[1739630904280,0.03440411,194.39,194.36,0.03831934]
[1739630905182,0.03440411,194.39,194.38,5.1437]
[1739630906783,0.03440411,194.39,194.36,0.03831934]
[1739630906979,0.03440411,194.39,194.36,5.18231934]
[1739630907185,0.03440411,194.39,194.36,0.03831934]
[1739630909389,0.03440411,194.39,194.38,5.1437]
[1739630912885,0.03440411,194.39,194.37,5.144]
[1739630913091,0.03440411,194.39,194.36,0.03831934]
[1739630915091,0.03440411,194.39,194.38,5.1437]
[1739630919493,0.03440411,194.39,194.36,0.03831934]
[1739630919992,0.03440411,194.39,194.37,5.1438]
[1739630920291,0.03440411,194.39,194.36,0.03831934]
[1739630920685,0.03440411,194.39,194.37,5.144]
[1739630920890,0.03440411,194.39,194.36,0.03831934]
[1739630922196,5.144,194.38,194.36,0.03831934]
[1739630922496,0.03440411,194.39,194.36,0.03831934]
[1739630925592,0.03440411,194.39,194.38,5.1437]
[1739630928199,0.03440411,194.39,194.36,0.03831934]
[1739630928890,0.03440411,194.39,194.36,5.18261934]
[1739630929095,0.03440411,194.39,194.36,0.03831934]
[1739630931898,0.03440411,194.39,194.38,5.1437]
[1739630932898,0.03440411,194.39,194.36,0.03831934]
[1739630933699,0.03440411,194.39,194.36,5.18251934]
[1739630934101,0.03440411,194.39,194.36,0.03831934]
[1739630934896,5.17790411,194.39,194.36,0.03831934]
[1739630936001,0.03440411,194.39,194.36,0.03831934]
[1739630936304,0.03440411,194.39,194.36,5.18251934]
[1739630937206,0.03440411,194.39,194.37,5.144]
[1739630940306,0.03440411,194.39,194.36,0.03831934]
[1739630941011,5.17790411,194.39,194.36,0.03831934]
[1739630941502,0.03440411,194.39,194.37,5.1439]
[1739630942804,0.03440411,194.39,194.38,5.1437]
[1739630943307,0.03440411,194.39,194.36,0.03831934]
[1739630944307,0.03440411,194.39,194.38,5.1437]
[1739630945103,0.03440411,194.39,194.36,0.03831934]
[1739630945303,0.03440411,194.39,194.37,5.1439]
[1739630946411,14.32595273,194.39,194.36,0.03831934]
[1739630946605,9.18245273,194.39,194.36,0.03831934]
[1739630947207,5.144,194.37,194.36,0.03831934]
[1739630950815,5.1448,194.34,194.27,1.5058]
[1739630951002,17.46458035,194.38,194.29,5.1459]
[1739630952008,5.1451,194.33,194.27,5.1464]
[1739630952209,5.1451,194.33,194.32,0.03604263]
[1739630952409,5.1451,194.33,194.23,15.87758035]
[1739630952613,5.1451,194.33,194.31,0.03430396]
[1739630952811,5.1451,194.33,194.23,15.87758035]
[1739630953110,5.1451,194.33,194.3,0.03735646]
[1739630953810,0.03382126,194.34,194.3,0.03735646]
[1739630954012,5.17862126,194.34,194.3,0.03735646]
[1739630954614,0.03382126,194.34,194.3,0.03735646]
[1739630956010,5.17862126,194.34,194.3,0.03735646]
[1739630956710,5.1451,194.33,194.3,0.03735646]
[1739630957420,5.17872126,194.34,194.3,0.03735646]
[1739630958118,0.03382126,194.34,194.3,0.03735646]
[1739630958320,5.1453,194.33,194.3,0.03735646]
[1739630958711,0.03382126,194.34,194.3,0.03735646]
[1739630961120,0.03382126,194.34,194.31,5.1455]
[1739630962015,0.03382126,194.34,194.33,5.1451]
[1739630963116,0.03382126,194.34,194.32,5.1453]
[1739630963315,0.03382126,194.34,194.3,0.03735646]
[1739630964518,5.17862126,194.34,194.3,5.18295646]
[1739630964714,0.03382126,194.34,194.3,0.03735646]
[1739630965122,5.17862126,194.34,194.3,5.18305646]
[1739630965623,0.03382126,194.34,194.3,0.03735646]
[1739630965823,5.17862126,194.34,194.3,0.03735646]
[1739630966415,5.17862126,194.34,194.3,5.18295646]
[1739630966624,0.03382126,194.34,194.3,0.03735646]
[1739630966818,0.03382126,194.34,194.33,5.1451]
[1739630967624,0.03382126,194.34,194.33,14.29249908]
[1739630968225,14.29019908,194.42,194.37,5.1439]
[1739630968624,14.29019908,194.42,194.38,5.1436]
[1739630969221,14.32589046,194.42,194.38,5.18235345]
[1739630969524,9.18309046,194.42,194.38,5.18235345]
[1739630970620,0.03569138,194.42,194.39,5.1434]
[1739630971125,0.03569138,194.42,194.38,0.03875345]
[1739630972226,0.03569138,194.42,194.38,5.18225345]
[1739630972630,0.03569138,194.42,194.38,14.32965253]
[1739630973428,0.03569138,194.42,194.38,9.18615253]
[1739630974627,0.03569138,194.42,194.4,5.143]
[1739630974823,0.03569138,194.42,194.38,9.18615253]
[1739630975326,0.03569138,194.42,194.4,5.143]
[1739630975829,0.03569138,194.42,194.38,9.18615253]
[1739630976133,0.03569138,194.42,194.39,5.1434]
[1739630978128,0.03569138,194.42,194.38,0.03875345]
[1739630978831,5.17839138,194.42,194.38,0.03875345]
[1739630979231,9.18309046,194.42,194.38,0.03875345]
[1739630979432,5.143,194.41,194.38,0.03875345]
[1739630980334,5.17839138,194.42,194.38,5.18245345]
[1739630982237,5.17839138,194.42,194.38,0.03875345]
[1739630983232,5.143,194.41,194.38,0.03875345]
[1739630984431,0.03569138,194.42,194.38,0.03875345]
[1739630984635,5.143,194.41,194.38,0.03875345]
[1739630985336,0.03569138,194.42,194.38,5.18245345]
[1739630986542,0.03569138,194.42,194.39,5.1434]
[1739630987338,0.03569138,194.42,194.38,14.32985253]
[1739630988036,0.03569138,194.42,194.39,5.1435]
[1739630988439,0.03569138,194.42,194.38,9.18615253]
[1739630990040,0.03569138,194.42,194.39,5.1434]
[1739630991338,0.03569138,194.42,194.38,14.32985253]
[1739630992337,0.03569138,194.42,194.39,5.1435]
[1739630993041,0.03569138,194.42,194.38,14.32985253]
[1739630993741,5.17849138,194.42,194.38,5.18245345]
[1739630994241,9.18309046,194.42,194.38,0.03875345]
[1739630994739,9.14739908,194.4,194.38,0.03875345]
[1739630995741,5.1435,194.39,194.38,0.03875345]
[1739630997945,14.29069908,194.4,194.38,0.03875345]
[1739630998448,9.14739908,194.4,194.38,0.03875345]
[1739630998643,9.18309046,194.42,194.38,0.03875345]
[1739630999255,14.32599046,194.42,194.38,0.03875345]
[1739630999845,9.18309046,194.42,194.38,0.03875345]
[1739631000046,14.32579046,194.42,194.38,0.03875345]
[1739631000345,9.18309046,194.42,194.38,0.03875345]
[1739631000545,9.18309046,194.42,194.38,5.18245345]
[1739631001547,0.03569138,194.42,194.38,9.18615253]
[1739631002047,0.03569138,194.42,194.39,5.1432]
[1739631002248,0.03569138,194.42,194.38,9.18615253]
[1739631003245,0.03569138,194.42,194.38,14.32985253]
[1739631005048,0.03569138,194.42,194.38,9.18615253]
[1739631005242,9.14739908,194.4,194.38,0.03875345]
[1739631005644,14.29079908,194.4,194.38,0.03875345]
[1739631005846,9.14739908,194.4,194.38,0.03875345]
[1739631006445,14.29069908,194.4,194.38,0.03875345]
[1739631006750,9.14739908,194.4,194.38,0.03875345]
[1739631006951,5.1435,194.39,194.38,0.03875345]
[1739631007750,5.1441,194.37,194.32,9.14739908]
[1739631008053,14.29149908,194.37,194.31,5.1454]
[1739631009058,0.0365961,194.36,194.32,0.03720933]
[1739631011255,5.1808961,194.36,194.32,0.03720933]